bitfinex/quotes_ETHUSD_20220220
["timestamp","ask_amount","ask_price","bid_price","bid_amount"]
[1645334737095,0.00356091,2685.9,2685.8,1.17157424]
[1645334737296,0.93545091,2685.9,2685.8,1.17157424]
[1645334737705,1.93545091,2685.9,2685.8,1.17157424]
[1645334737955,1.93189,2685.9,2685.8,1.17157424]
[1645334738443,15.5,2685.8,2684.6,0.14278521]
[1645334738643,0.93205,2685.5,2684.7,0.00269535]
[1645334738856,0.93205,2685.5,2684.4,1.58299516]
[1645334739044,5.0,2685.0,2684.3,0.00269535]
[1645334739245,5.0,2685.0,2684.1,5.08577269]
[1645334739442,5.0,2685.0,2684.9,0.88033126]
[1645334740441,0.93218,2685.0,2684.9,0.88033126]
[1645334742493,5.93218,2685.0,2684.3,0.00230614]
[1645334742695,5.93218,2685.0,2684.1,0.00269535]
[1645334742696,5.93218,2685.0,2684.2,1.58326026]
[1645334742996,0.93218,2685.0,2684.3,1.58589431]
[1645334743192,0.93218,2685.0,2684.4,1.58319896]
[1645334743391,0.93218,2685.0,2684.8,0.84371461]
[1645334745839,1.11825,2685.3,2684.8,0.84371461]
[1645334746036,6.11825,2685.3,2684.8,0.84640996]
[1645334746238,6.41825,2685.3,2684.8,0.84640996]
[1645334746438,7.54935892,2685.3,2684.8,0.84640996]
[1645334747043,1.86433,2685.2,2684.8,0.84640996]
[1645334747247,1.86433,2685.2,2684.8,0.84371461]
[1645334747646,6.11825,2685.3,2684.9,1.58304813]
[1645334747647,0.93205,2685.3,2684.9,1.58304813]
[1645334747844,0.0035607,2685.4,2684.9,1.58304813]
[1645334748648,1.86404,2685.6,2684.9,1.58304813]
[1645334748851,0.00356086,2685.4,2685.0,0.00269535]
[1645334749290,0.932,2685.4,2685.1,16.0]
[1645334749891,0.932,2685.4,2685.0,0.00269535]
[1645334750091,0.932,2685.4,2685.3,1.12314957]
[1645334750999,0.93188,2685.7,2685.3,6.20601465]
[1645334751193,8.0339,2686.2,2685.4,41.58286508]
[1645334751393,5.0,2686.2,2685.5,5.08286508]
[1645334751596,5.0,2686.2,2685.5,3.50269535]
[1645334751800,5.0,2686.2,2686.1,0.96830941]
[1645334751995,5.0,2686.2,2684.9,2.17012]
[1645334751996,6.86365,2686.2,2685.6,0.00269535]
[1645334752195,0.633,2686.1,2685.2,0.00269535]
[1645334752394,5.0,2685.3,2684.9,1.5829789]
[1645334752594,1.633,2686.1,2685.0,1.58567425]
[1645334752792,1.633,2686.1,2684.7,0.00269535]
[1645334753245,1.48496427,2686.0,2684.7,3.50269535]
[1645334753445,1.48496427,2686.0,2684.8,1.58574557]
[1645334753648,5.0,2685.1,2684.8,1.58574557]
[1645334753848,1.86418,2685.4,2684.8,1.58305022]
[1645334754044,1.86418,2685.4,2684.9,1.58574557]
[1645334754247,5.0,2685.6,2685.0,2.46134182]
[1645334754445,2.6102,2686.1,2685.5,1.00519226]
[1645334754649,5.0,2686.2,2685.5,1.00519226]
[1645334754849,0.0035608,2686.3,2685.6,1.58272362]
[1645334755047,0.0035608,2686.3,2685.6,1.58541897]
[1645334755448,5.0,2686.2,2685.6,0.00269535]
[1645334755649,5.0,2686.2,2685.3,1.58549116]
[1645334755845,1.0,2686.1,2685.3,1.58549116]
[1645334756253,1.8639535,2685.9,2685.3,0.00269535]
[1645334756445,5.0,2685.8,2685.4,0.95124444]
[1645334756690,1.9320035,2685.9,2685.4,0.95393979]
[1645334756890,5.0,2685.5,2685.4,0.95124444]
[1645334757092,5.0,2685.5,2685.4,0.95393979]
[1645334757291,5.0,2685.8,2685.4,0.95124444]
[1645334757492,0.93201,2685.5,2685.4,0.95124444]
[1645334758192,0.186,2686.0,2685.4,2.53408976]
[1645334758399,1.0,2686.1,2685.5,1.58284532]
[1645334758796,1.86375,2686.0,2685.5,1.58284532]
[1645334758994,1.86375,2686.0,2685.4,0.95393979]
[1645334758995,5.0,2685.9,2685.4,0.95393979]
[1645334759192,1.86375,2686.0,2685.4,0.95393979]
[1645334759393,1.93186,2685.8,2685.4,0.95393979]
[1645334759591,0.93186,2685.8,2685.4,0.95124444]
[1645334759793,0.00314299,2685.6,2685.4,0.95124444]
[1645334759992,5.0,2685.5,2685.4,0.95124444]
[1645334760452,6.0,2685.5,2685.4,0.95124444]
[1645334760642,6.93207,2685.5,2685.4,0.95124444]
[1645334760843,0.93207,2685.5,2685.4,0.95124444]
[1645334761943,5.93207,2685.5,2685.4,0.95124444]
[1645334762244,0.93207,2685.5,2685.4,0.95124444]
[1645334763042,5.93207,2685.5,2685.4,0.95124444]
[1645334764809,1.86733106,2685.6,2685.4,0.95124444]
[1645334764810,0.00320106,2685.6,2685.4,0.95124444]
[1645334765307,5.0,2686.0,2685.4,0.95124444]
[1645334765308,1.0,2685.9,2685.4,0.95124444]
[1645334765507,0.00320105,2685.6,2685.4,0.95393979]
[1645334765806,0.00320105,2685.6,2685.5,1.58274264]
[1645334766105,0.00320105,2685.6,2685.5,1.5828253]
[1645334766505,1.0,2686.0,2685.5,1.5828253]
[1645334766715,0.00319048,2685.7,2685.5,1.58552065]
[1645334767006,0.00319048,2685.7,2685.4,0.95124444]
[1645334767607,0.93187,2685.8,2685.4,0.95124444]
[1645334768043,0.00319048,2685.7,2685.4,0.95124444]
[1645334768842,0.93187,2685.8,2685.4,0.95124444]
[1645334769042,0.00319048,2685.7,2685.4,0.95124444]
[1645334770143,0.93187,2685.8,2685.4,0.95124444]
[1645334770343,0.00319263,2685.7,2685.4,0.95124444]
[1645334770747,0.00319263,2685.7,2685.5,3.5]
[1645334771149,9.263e-05,2685.7,2685.5,3.5]
[1645334771346,6.0,2686.5,2685.8,0.00948526]
[1645334771347,5.0,2686.5,2685.8,0.00948526]
[1645334771996,1.186,2686.8,2685.8,0.00948526]
[1645334772392,4.95,2686.5,2685.8,0.00948526]
[1645334772796,4.95,2686.5,2685.9,1.18850443]
[1645334772996,4.95,2686.5,2686.0,3.5]
[1645334773396,4.95,2686.5,2686.4,1.14383555]
[1645334773797,4.95,2686.5,2685.8,0.00948526]
[1645334774001,4.9531944,2686.4,2685.8,0.00948526]
[1645334774399,0.186,2686.3,2685.8,0.00948526]
[1645334774798,4.95,2686.4,2685.8,0.00948526]
[1645334774997,4.95,2686.4,2686.2,1.14157581]
[1645334774998,5.136,2686.4,2686.2,1.14157581]
[1645334775742,0.00256882,2686.3,2686.2,1.14157581]
[1645334778551,11.9762,2687.2,2686.2,2.72398218]
[1645334778552,4.95,2687.0,2686.2,2.72398218]
[1645334778753,9.388e-05,2686.4,2686.3,13.82368941]
[1645334778952,9.388e-05,2686.4,2686.3,17.86068941]
[1645334779196,9.388e-05,2686.4,2686.3,18.64668941]
[1645334779395,0.130811,2688.3,2686.5,11.31]
[1645334779595,0.130811,2688.3,2686.9,11.36]
[1645334779800,0.186,2688.6,2687.5,11.31]
[1645334779997,4.95,2689.0,2688.6,1.14376508]
[1645334780200,4.95,2689.0,2688.6,2.18816508]
[1645334780601,0.1859,2689.2,2688.6,2.18816508]
[1645334780996,4.95,2688.7,2688.6,2.18816508]
[1645334781199,4.95,2688.7,2688.6,1.14376508]
[1645334781397,4.95,2688.7,2687.9,1.1871]
[1645334781602,4.95,2688.2,2687.3,3.5]
[1645334781798,0.08611616,2688.7,2687.2,6.3827]
[1645334782096,4.95,2688.0,2687.2,3.8]
[1645334782597,4.95,2688.0,2687.4,1.86181]
[1645334782598,4.95319513,2688.0,2687.4,1.86181]
[1645334782799,4.95319513,2688.0,2687.5,3.5]
[1645334783044,4.95319513,2688.0,2687.6,0.95885404]
[1645334783245,4.95,2688.0,2687.6,0.95885404]
[1645334783743,0.00319516,2687.9,2687.6,0.95885404]
[1645334784545,4.95,2688.0,2687.6,0.95885404]
[1645334784746,0.00319184,2687.9,2687.6,0.95885404]
[1645334785746,4.95,2688.0,2687.6,0.95885404]
[1645334785948,0.00319184,2687.9,2687.6,0.95885404]
[1645334786549,0.00319184,2687.9,2686.8,3.5]
[1645334786550,4.95,2687.7,2686.8,3.5]
[1645334786801,4.95,2687.3,2686.4,4.43135]
[1645334787098,0.00319195,2687.4,2686.4,4.43135]
[1645334787899,0.93138,2687.3,2686.4,4.43135]
[1645334788099,5.88138,2687.3,2686.4,4.43135]
[1645334788300,0.93138,2687.3,2686.4,0.93135]
[1645334788499,0.93138,2687.3,2686.0,12.27947167]
[1645334788500,4.95,2687.1,2686.0,12.27947167]
[1645334788700,4.95,2687.1,2686.0,15.77947167]
[1645334788901,4.95,2687.1,2686.1,0.6]
[1645334789098,0.93148,2687.0,2686.2,3.5]
[1645334789296,0.93148,2687.0,2686.3,1.13988425]
[1645334789297,4.95,2686.9,2686.3,1.13988425]
[1645334789497,0.00319254,2686.7,2686.3,1.13988425]
[1645334789697,0.00319254,2686.7,2686.3,2.07130425]
[1645334790103,0.00319254,2686.7,2686.3,1.13988425]
[1645334790546,4.95,2686.9,2686.3,1.13988425]
[1645334790748,0.00319256,2686.6,2686.3,1.13988425]
[1645334791747,4.95,2686.9,2686.3,1.13988425]
[1645334791949,0.93148,2687.0,2686.8,1.05179903]
[1645334792153,4.95,2686.9,2686.0,0.03802167]
[1645334792350,0.186,2686.9,2686.0,0.03802167]
[1645334793151,0.00319253,2686.6,2686.0,0.96952167]
[1645334793352,0.00319253,2686.6,2686.1,3.5]
[1645334793550,0.00319253,2686.6,2686.2,1.86273]
[1645334793754,0.00319253,2686.6,2686.3,3.5]
[1645334794196,4.95,2687.0,2686.4,1.04189905]
[1645334794395,0.00319253,2686.6,2686.4,1.04189905]
[1645334794595,6.0674,2687.3,2686.6,0.00638506]
[1645334794796,5.8814,2687.3,2686.6,3.50638506]
[1645334796398,5.8814,2687.3,2687.2,0.91084752]
[1645334796599,4.95,2687.3,2687.2,0.91084752]
[1645334797102,0.186,2687.5,2687.2,0.91084752]
[1645334797301,0.186,2687.7,2687.2,0.91084752]
[1645334798144,4.95,2687.8,2687.2,0.91084752]
[1645334798745,4.95,2687.8,2687.7,0.96838625]
[1645334799545,0.09611631,2688.0,2687.7,0.96838625]
[1645334799846,4.95,2688.1,2687.7,0.96838625]
[1645334800449,0.00356184,2688.0,2687.7,0.96838625]
[1645334800645,4.95,2688.1,2687.8,15.0]
[1645334800646,4.40356184,2688.1,2687.8,15.0]
[1645334800845,1.11703,2688.3,2687.8,15.0]
[1645334801345,4.40356184,2688.1,2687.8,15.0]
[1645334801546,0.186,2688.3,2687.8,15.0]
[1645334801799,5.58956184,2688.4,2687.8,15.0]
[1645334801994,5.40356184,2688.4,2687.8,15.0]
[1645334802596,5.40356184,2688.4,2688.2,0.93538346]
[1645334803898,5.40641984,2688.4,2688.2,0.93538346]
[1645334804099,0.93103,2688.3,2687.4,1.86183]
[1645334804298,4.40356184,2687.8,2687.3,3.5]
[1645334804499,4.40356184,2687.8,2686.9,3.686]
[1645334804700,4.40356184,2687.8,2686.9,5.6819186]
[1645334804901,4.40356184,2687.8,2686.9,4.1]
[1645334805101,4.40356184,2687.8,2687.0,1.58191835]
[1645334805300,4.40356184,2687.8,2687.6,1.16769306]
[1645334809200,0.9312,2687.9,2687.6,1.16769306]
[1645334809402,0.00356253,2688.1,2687.6,1.16769306]
[1645334809802,4.40356184,2688.0,2687.6,1.16769306]
[1645334810199,0.00356269,2688.1,2687.6,1.16769306]
[1645334810400,4.40356184,2688.0,2687.6,1.16769306]
[1645334810803,0.00356269,2688.1,2687.6,1.16769306]
[1645334811001,5.52062184,2688.3,2687.6,1.16769306]
[1645334811201,0.00356263,2688.1,2687.6,1.16769306]
[1645334812202,5.52062184,2688.3,2687.6,1.16769306]
[1645334812402,5.52062184,2688.3,2688.2,1.08962662]
[1645334813650,5.33462184,2688.3,2688.2,1.08962662]
[1645334814249,4.40356184,2688.3,2688.2,1.08962662]
[1645334814551,4.40356184,2688.6,2688.2,1.08962662]
[1645334814950,0.00356278,2688.4,2688.2,1.08962662]
[1645334815748,4.40356184,2688.6,2688.2,1.08962662]
[1645334815954,0.00356277,2688.4,2688.2,1.08962662]
[1645334816997,4.40356184,2688.6,2688.2,1.08962662]
[1645334817197,0.00356277,2688.4,2688.2,1.08962662]
[1645334817499,0.00356277,2688.4,2687.5,1.86171]
[1645334817700,4.40356184,2687.7,2687.2,7.7423]
[1645334817899,4.40356184,2688.1,2687.3,2.51288796]
[1645334818197,4.40356184,2688.1,2687.3,0.93108]
[1645334818397,4.4071241,2688.1,2687.3,0.93108]
[1645334818604,5.3382441,2688.1,2687.4,3.5]
[1645334818797,5.3382441,2688.1,2687.5,0.93091023]
[1645334818998,5.3382441,2688.1,2688.0,1.06832722]
[1645334819397,5.33468184,2688.1,2688.0,1.06832722]
[1645334820198,0.93112,2688.1,2688.0,1.06832722]
[1645334820464,0.186,2688.4,2688.0,1.06832722]
[1645334820465,4.40356184,2688.3,2688.0,1.06832722]
[1645334820854,1.00356283,2688.2,2688.0,1.06832722]
[1645334821053,4.40356184,2688.1,2688.0,1.06832722]
[1645334821453,5.33465184,2688.1,2688.0,1.06832722]
[1645334822856,5.33465184,2688.1,2687.3,3.5]
[1645334823056,5.33465184,2688.1,2687.4,1.58179441]
[1645334823259,5.33465184,2688.1,2687.1,5.008]
[1645334823260,4.40356184,2687.9,2687.1,5.008]
[1645334823457,4.40356184,2687.9,2687.2,1.58185848]
[1645334823761,4.40356184,2687.9,2687.3,3.5]
[1645334824198,4.40356184,2687.9,2687.8,1.06738887]
[1645334824400,0.93109,2688.1,2687.8,1.06738887]
[1645334824401,0.00356242,2688.1,2687.9,11.31]
[1645334824603,0.00356242,2688.1,2687.8,1.06738887]
[1645334824799,0.00356242,2688.1,2687.8,12.37738887]
[1645334825400,4.40356184,2688.7,2687.9,1.86143]
[1645334825599,0.186,2688.9,2687.9,1.86143]
[1645334825600,0.00356279,2688.1,2687.9,1.86143]
[1645334825800,0.00356279,2688.1,2687.8,1.06738887]
[1645334826599,1.22076509,2688.8,2687.8,1.06738887]
[1645334826805,1.22076509,2688.8,2687.7,1.0519]
[1645334826806,0.00356279,2688.1,2687.7,1.0519]
[1645334827001,6.279e-05,2688.1,2687.8,1.58157354]
[1645334827306,0.186,2689.0,2688.1,11.31073721]
[1645334827512,0.1859,2689.4,2688.2,16.39157354]
[1645334827700,10.5559,2689.9,2688.4,11.90643816]
[1645334827967,10.5559,2689.9,2688.7,1.4163]
[1645334827968,4.40356184,2689.8,2688.7,1.4163]
[1645334828154,7.32,2689.9,2688.7,16.5226]
[1645334828353,4.57654018,2689.8,2688.8,3.8]
[1645334828554,4.57654018,2689.8,2688.8,15.11]
[1645334828555,0.1859,2689.8,2688.8,15.11]
[1645334828754,0.1859,2689.9,2688.8,15.41]
[1645334828960,27.226,2690.6,2689.3,11.31]
[1645334828961,0.1859,2690.1,2689.3,11.31]
[1645334829165,4.39064018,2690.3,2689.5,11.31]
[1645334829357,0.1858,2690.8,2690.0,0.60935982]
[1645334829559,0.1858,2690.8,2690.1,14.81]
[1645334829757,4.52145118,2691.4,2690.1,15.11]
[1645334829758,0.04035807,2690.9,2690.1,15.11]
[1645334830054,0.04035807,2690.9,2690.4,13.16932]
[1645334830055,5.807e-05,2690.9,2690.4,13.16932]
[1645334830254,5.807e-05,2690.9,2690.6,11.61]
[1645334830455,5.807e-05,2690.9,2690.6,11.91]
[1645334830656,5.807e-05,2690.9,2690.5,0.1877]
[1645334830863,4.39064018,2690.7,2689.9,0.1857]
[1645334831058,4.39064018,2690.7,2689.8,0.03802167]
[1645334831465,4.39069825,2690.9,2689.8,0.03802167]
[1645334831699,0.00356397,2690.4,2689.9,0.96585168]
[1645334831898,0.00356397,2690.4,2690.1,0.93004]
[1645334832507,4.39064018,2690.2,2689.9,0.96585168]
[1645334832700,5.807e-05,2690.9,2689.9,0.96585168]
[1645334832701,4.39064018,2690.0,2689.9,0.96585168]
[1645334833101,0.00356399,2690.4,2689.9,0.96585168]
[1645334833303,4.57634018,2690.3,2689.9,0.96585168]
[1645334833500,4.39064018,2690.0,2689.9,0.96585168]
[1645334833702,4.57634018,2690.3,2689.9,0.96585168]
[1645334833903,0.9303,2690.4,2689.9,0.96585168]
[1645334834105,4.39064018,2690.0,2689.9,0.96585168]
[1645334838150,0.00356407,2690.1,2689.9,0.96585168]
[1645334838550,4.39064018,2690.6,2689.9,0.96585168]
[1645334838752,0.00356405,2690.1,2689.9,0.96585168]
[1645334839398,4.39064018,2690.0,2689.9,0.96585168]
[1645334839598,4.92764018,2690.0,2689.9,0.96585168]
[1645334841196,0.93055,2689.7,2688.9,0.01085828]
[1645334841401,4.39064018,2689.1,2688.4,0.1859]
[1645334841597,4.39064018,2689.1,2688.2,0.1859]
[1645334841800,4.39064018,2689.1,2688.3,1.58104898]
[1645334842496,0.00348451,2688.8,2688.3,1.58104898]
[1645334842697,0.00348451,2688.8,2688.4,1.09357758]
[1645334842959,0.00348451,2688.8,2688.6,11.31]
[1645334843147,0.00348451,2688.8,2688.7,12.89103342]
[1645334843346,4.39064018,2689.5,2688.7,1.88103342]
[1645334843547,4.39064018,2689.5,2688.8,1.58103342]
[1645334843749,4.39064018,2689.5,2688.7,11.61]
[1645334843946,4.39064018,2689.5,2688.8,12.89088927]
[1645334844147,4.39064018,2689.5,2688.8,11.61]
[1645334844350,4.39064018,2689.5,2688.9,0.89933208]
[1645334844749,4.39064018,2689.9,2689.0,11.31]
[1645334844951,0.0034844,2689.3,2689.0,13.17069]
[1645334845150,0.0034844,2689.3,2689.0,13.47069]
[1645334845350,0.0034844,2689.3,2689.2,11.31]
[1645334845551,0.0034844,2689.3,2689.0,1.86069]
[1645334845750,3.5,2690.3,2689.0,1.86069]
[1645334845751,4.39064018,2689.6,2689.0,1.86069]
[1645334846153,0.00342248,2689.4,2689.0,1.86069]
[1645334847001,3.5,2690.1,2689.0,1.86069]
[1645334847002,5.36103,2690.1,2689.0,1.86069]
[1645334847198,5.36103,2690.1,2688.9,0.89933208]
[1645334847199,4.39064018,2689.3,2688.9,0.89933208]
[1645334847400,2.70774709,2689.3,2688.9,0.89933208]
[1645334847901,0.00342249,2689.3,2688.9,1.82983208]
[1645334848295,2.7043246,2689.6,2688.9,1.82983208]
[1645334848497,0.00342251,2689.2,2688.9,1.82983208]
[1645334849298,0.00342251,2689.2,2688.9,13.13983208]
[1645334849501,2.7043246,2689.6,2688.9,1.82983208]
[1645334849697,0.00343645,2689.2,2688.9,1.82983208]
[1645334850748,0.93046,2689.9,2688.9,1.82983208]
[1645334850947,0.00343645,2689.2,2689.0,5.08080024]
[1645334851149,0.00343645,2689.2,2688.9,13.13983208]
[1645334851348,0.00343645,2689.2,2689.0,1.58079859]
[1645334851546,0.00343645,2689.2,2689.1,3.5]
[1645334852051,2.7043246,2690.1,2689.2,0.93032]
[1645334852249,2.7043246,2690.1,2689.3,3.5]
[1645334852445,2.7043246,2690.1,2690.0,1.00172028]
[1645334854496,2.7043246,2690.1,2690.0,0.24172028]
[1645334855497,2.7043246,2690.1,2689.4,0.93032]
[1645334856698,2.7043246,2690.1,2689.7,0.87531532]
[1645334856898,0.00343387,2689.9,2689.7,0.87531532]
[1645334857951,2.7043246,2690.1,2689.7,0.87531532]
[1645334858144,0.00343386,2689.9,2689.7,0.87531532]
[1645334858445,0.00343386,2689.9,2689.1,3.5]
[1645334858644,2.7043246,2689.6,2689.0,1.86064]
[1645334859449,0.00343397,2689.4,2689.1,1.18580189]
[1645334860244,2.7043246,2689.6,2689.1,1.18580189]
[1645334860445,0.00317011,2689.4,2689.1,1.18580189]
[1645334861449,2.7043246,2689.6,2689.1,1.18580189]
[1645334861693,0.00317011,2689.4,2689.1,1.18580189]
[1645334862695,2.7043246,2689.9,2689.2,11.31]
[1645334862897,0.00317011,2689.4,2689.3,0.93035]
[1645334863095,0.00317011,2689.4,2689.3,1.23035]
[1645334863296,0.00317011,2689.4,2689.3,14.12092985]
[1645334863897,2.7043246,2690.0,2689.7,1.00668891]
[1645334865100,1.11618,2690.5,2689.7,1.00668891]
[1645334865297,2.70751224,2690.0,2689.7,1.00668891]
[1645334865550,0.00318764,2690.0,2689.7,1.00668891]
[1645334866351,2.7043246,2690.2,2689.7,1.00668891]
[1645334866548,0.00318764,2690.0,2689.7,1.00668891]
[1645334867549,2.7043246,2690.2,2689.7,1.00668891]
[1645334867756,0.00318763,2690.0,2689.7,1.00668891]
[1645334868750,2.7043246,2690.2,2689.7,1.00668891]
[1645334868951,0.00318642,2690.0,2689.7,1.00668891]
[1645334869605,2.7043246,2689.9,2689.7,1.00668891]
[1645334870005,2.7043246,2689.9,2689.1,1.2196]
[1645334870208,2.7043246,2689.7,2689.0,0.93045]
[1645334870411,2.7043246,2689.7,2689.1,1.5807111]
[1645334870604,0.00318642,2690.0,2689.1,1.5807111]
[1645334870808,2.7043246,2689.7,2689.1,1.5807111]
[1645334871005,2.7043246,2689.7,2689.6,0.84883427]
[1645334871404,2.70751109,2689.7,2689.6,0.84883427]
[1645334871605,2.70751109,2689.7,2689.6,2.42951411]
[1645334871807,0.00318649,2689.7,2689.6,0.84883427]
[1645334872206,2.7043246,2689.9,2689.6,0.84883427]
[1645334872607,0.00318655,2689.8,2689.6,0.84883427]
[1645334873462,2.7043246,2690.0,2689.6,0.84883427]
[1645334873648,0.00318654,2689.8,2689.6,1.77910427]
[1645334874650,2.7043246,2690.2,2689.7,1.58063471]
[1645334874849,0.00260871,2689.8,2689.6,1.77910427]
[1645334875253,0.00260871,2689.8,2689.7,1.5806368]
[1645334875850,2.7043246,2690.2,2689.7,1.5806368]
[1645334876050,0.00260871,2689.9,2689.7,1.5806368]
[1645334876704,0.00260871,2689.9,2689.7,5.0806368]
[1645334876903,0.00260871,2689.9,2689.7,3.5]
[1645334877204,2.7043246,2690.2,2689.6,1.77910427]
[1645334877403,2.7043246,2690.2,2689.7,5.08059972]
[1645334877602,0.00099563,2689.7,2689.6,1.77910427]
[1645334877803,0.00099563,2689.7,2689.6,3.3597027]
[1645334878607,0.00099563,2689.7,2689.6,6.8597027]
[1645334878802,0.00018266,2689.7,2689.6,6.8597027]
[1645334879503,0.00018266,2689.7,2689.6,6.01086843]
[1645334879706,0.00018266,2689.7,2689.6,5.08059843]
[1645334880752,0.00018266,2689.7,2689.6,2.68571063]
[1645334880948,0.00018266,2689.7,2689.6,1.58059843]
[1645334887206,0.00018266,2689.7,2689.6,5.08059843]
[1645334887606,0.00018266,2689.7,2689.6,16.39059843]
[1645334887806,0.00018266,2689.7,2689.6,5.08059843]
[1645334888450,0.00018266,2689.7,2689.6,1.58059843]
[1645334891802,0.00018266,2689.7,2689.6,12.89059843]
[1645334892000,0.00018266,2689.7,2689.6,1.58059843]
[1645334894703,0.00018266,2689.7,2689.6,1.88059843]
[1645334894902,0.00018266,2689.7,2689.6,1.58059843]
[1645334895750,0.00018266,2689.7,2689.5,1.58059843]
[1645334896555,0.00350363,2689.7,2689.5,1.58059843]
[1645334897452,0.00018266,2689.7,2689.5,1.58059843]
[1645334897852,0.00350362,2689.7,2689.5,1.58059843]
[1645334898655,0.00018266,2689.7,2689.5,1.58059843]
[1645334899059,0.00350362,2689.7,2689.5,5.08059843]
[1645334899303,0.00350362,2689.7,2689.6,1.58059843]
[1645334899704,0.00350362,2689.7,2689.5,1.58059843]
[1645334899903,0.00350362,2689.7,2689.6,1.58059843]
[1645334899904,0.00018266,2689.7,2689.6,1.58059843]
[1645334900305,0.00018266,2689.7,2689.5,1.58059843]
[1645334900503,0.00018266,2689.7,2689.6,1.58059843]
[1645334900704,0.00018266,2689.7,2689.5,1.58059843]
[1645334901304,0.00350363,2689.7,2689.5,1.58059843]
[1645334902306,0.00018266,2689.7,2689.5,1.58059843]
[1645334902504,0.00018266,2689.7,2689.6,3.5]
[1645334902505,3.63e-06,2689.7,2689.6,3.5]
[1645334902706,3.63e-06,2689.7,2689.6,5.08059843]
[1645334903157,3.63e-06,2689.7,2689.6,16.39059843]
[1645334903557,2.7043246,2690.6,2689.8,0.92995]
[1645334903759,2.7043246,2690.6,2690.4,1.03871051]
[1645334904958,2.70764781,2690.6,2690.4,1.03871051]
[1645334905960,2.7043246,2690.6,2690.4,1.03871051]
[1645334906161,2.70764781,2690.6,2690.4,1.03871051]
[1645334907207,2.7043246,2690.6,2690.4,1.03871051]
[1645334907408,2.70764781,2690.6,2690.4,1.03871051]
[1645334908411,2.7043246,2690.6,2690.4,1.03871051]
[1645334908611,2.70764521,2690.6,2690.4,1.03871051]
[1645334909611,2.7043246,2690.6,2690.4,1.03871051]
[1645334909814,2.70764521,2690.6,2690.4,1.03871051]
[1645334910657,0.00332061,2690.6,2690.4,1.03871051]
[1645334910855,2.7043246,2690.8,2690.4,1.03871051]
[1645334911057,0.00332061,2690.6,2690.4,1.03871051]
[1645334911860,2.7043246,2690.8,2690.4,1.03871051]
[1645334912261,0.00332078,2690.6,2690.4,1.03871051]
[1645334913059,2.7043246,2690.8,2690.4,1.03871051]
[1645334913460,0.00332078,2690.6,2690.4,1.03871051]
[1645334913862,0.00332078,2690.6,2690.0,1.85998]
[1645334914066,2.7043246,2690.3,2690.0,1.85998]
[1645334915415,2.7043246,2690.3,2690.1,1.58035676]
[1645334915709,2.70764546,2690.3,2690.1,2.59272038]
[1645334915908,2.70764546,2690.3,2690.1,1.01236362]
[1645334916713,2.7043246,2690.3,2690.1,1.01236362]
[1645334916911,2.70764545,2690.3,2690.1,1.01236362]
[1645334917967,2.7043246,2690.3,2690.0,1.85998]
[1645334918172,2.7043246,2690.1,2689.1,7.863]
[1645334918373,2.7043246,2689.4,2689.2,1.58069807]
[1645334918572,2.7043246,2689.4,2689.3,1.58069807]
[1645334918768,2.7043246,2689.4,2688.7,0.69939876]
[1645334918971,0.537,2690.0,2688.7,1.58069807]
[1645334919169,2.7043246,2689.4,2688.8,2.28009683]
[1645334919368,2.7043246,2689.4,2688.9,1.58069807]
[1645334919771,1.01825677,2689.4,2689.0,6.0]
[1645334919976,1.01825677,2689.4,2689.1,1.58069807]
[1645334920274,0.00332035,2689.8,2689.6,1.02248479]
[1645334920470,0.00332035,2689.8,2689.1,1.58069807]
[1645334920471,1.01825677,2689.7,2689.0,6.0]
[1645334920673,0.00332054,2689.8,2689.1,1.58067763]
[1645334921471,1.01825677,2689.6,2689.1,1.58067763]
[1645334921712,0.93048,2689.9,2689.4,1.11047049]
[1645334921910,0.00332074,2689.8,2689.5,1.58067763]
[1645334922111,0.00332074,2689.8,2689.4,1.11047049]
[1645334922312,0.00332074,2689.8,2689.5,1.58066914]
[1645334922516,0.00332074,2689.8,2689.4,1.11047049]
[1645334922713,0.93048,2689.9,2689.4,1.11047049]
[1645334923214,0.00332096,2689.8,2689.4,1.11047049]
[1645334923417,1.01825677,2689.5,2689.4,1.11047049]
[1645334923614,1.01825677,2689.5,2689.4,2.69121234]
[1645334925863,1.01825677,2689.5,2688.9,2.46073]
[1645334926068,0.00332076,2689.8,2689.0,1.58077063]
[1645334926069,1.01825677,2689.1,2689.0,1.58077063]
[1645334926662,1.01825677,2689.1,2688.7,1.58077063]
[1645334926864,1.01825677,2689.1,2689.0,0.89331738]
[1645334927063,1.01825677,2689.1,2689.0,2.47408801]
[1645334928961,1.01825677,2689.1,2689.0,0.89331738]
[1645334929208,0.93056,2689.6,2689.0,0.89331738]
[1645334929408,1.01825677,2689.3,2689.0,0.89331738]
[1645334930217,1.01825677,2689.1,2689.0,0.89331738]
[1645334930611,1.01825677,2689.1,2689.0,2.47419364]
[1645334930811,2.08420583,2689.6,2689.0,2.47419364]
[1645334931011,1.01825677,2689.3,2689.1,1.5808588]
[1645334931811,1.01825677,2689.5,2689.1,1.5808588]
[1645334932010,0.1859,2689.7,2689.1,1.5808588]
[1645334932213,1.01825677,2689.5,2689.1,1.5808588]
[1645334932412,1.01825677,2689.4,2689.1,1.5808588]
[1645334934864,1.01825677,2689.2,2689.0,0.89331738]
[1645334935264,1.01825677,2689.4,2689.0,0.89331738]
[1645334935469,1.01825677,2689.4,2688.6,1.86092]
[1645334935667,1.01825677,2689.2,2688.7,1.5809163]
[1645334936704,1.01825677,2689.2,2689.0,1.04706307]
[1645334937506,1.01825677,2689.2,2688.4,0.0108603]
[1645334937707,0.93065,2689.4,2688.5,1.58090218]
[1645334938111,1.01825677,2689.0,2688.5,1.58090218]
[1645334939105,1.01825677,2689.0,2688.9,0.85518528]
[1645334939309,1.01825677,2689.2,2688.9,2.43608746]
[1645334939508,1.01825677,2689.0,2688.9,0.85518528]
[1645334939709,1.01825677,2689.0,2688.9,2.43608109]
[1645334940108,1.01825677,2689.2,2688.9,2.43608109]
[1645334940308,1.01825677,2689.2,2688.9,0.85518528]
[1645334940566,1.01825677,2689.0,2688.4,0.0108603]
[1645334940767,1.01825677,2689.0,2688.5,1.58089273]
[1645334940970,0.93072,2689.1,2688.5,1.58089273]
[1645334941169,1.01825677,2688.7,2688.5,1.58089273]
[1645334941467,1.01825677,2688.7,2688.1,0.00850745]
[1645334941666,1.01825677,2688.7,2688.2,1.58118572]
[1645334941866,0.537,2689.0,2688.2,1.58118572]
[1645334942065,1.00271696,2688.9,2688.3,1.184508]